[Event "Titled Tuesday Blitz May 25 2021"]
[White "Gontcharov, Vladislav"]
[Black "Mirzoev, Azer"]
[WhiteFideId "4123492"]
[BlackFideId "13400304"]
[WhiteElo "2503"]
[BlackElo "2525"]
[Result "0-1"]
[Round "05"]
[TimeControl "180+1"]
[Date "2021.05.25"]
[WhiteClock "0:00:06"]
[BlackClock "0:00:12"]

1. Nf3 {[%clk 0:03:00]}  d5 {[%clk 0:02:59]} 2. g3 {[%clk 0:02:59]}  Nf6 {[%clk 0:02:58]} 3. Bg2 {[%clk 0:02:59]}  c6 {[%clk 0:02:58]} 4. O-O {[%clk 0:02:58]}  Bg4 {[%clk 0:02:59]} 5. d3 {[%clk 0:02:59]}  Nbd7 {[%clk 0:02:59]} 6. Qe1 {[%clk 0:02:58]}  e5 {[%clk 0:02:57]} 7. e4 {[%clk 0:02:57]}  dxe4 {[%clk 0:02:57]} 8. dxe4 {[%clk 0:02:57]}  Be7 {[%clk 0:02:58]} 9. h3 {[%clk 0:02:56]}  Bh5 {[%clk 0:02:57]} 10. Nh4 {[%clk 0:02:53]}  O-O {[%clk 0:02:56]} 11. Nf5 {[%clk 0:02:51]}  Bc5 {[%clk 0:02:50]} 12. Be3 {[%clk 0:02:46]}  Qb6 {[%clk 0:02:46]} 13. Nc3 {[%clk 0:02:18]}  Bxe3 {[%clk 0:02:44]} 14. Qxe3 {[%clk 0:02:17]}  Rfd8 {[%clk 0:02:38]} 15. Qg5 {[%clk 0:01:54]}  Bg6 {[%clk 0:02:35]} 16. Ne7+ {[%clk 0:01:49]}  Kf8 {[%clk 0:02:35]} 17. Nxg6+ {[%clk 0:01:49]}  hxg6 {[%clk 0:02:35]} 18. b3 {[%clk 0:01:47]}  Qc5 {[%clk 0:02:20]} 19. Nd1 {[%clk 0:01:40]}  Qxc2 {[%clk 0:02:17]} 20. Ne3 {[%clk 0:01:40]}  Qc5 {[%clk 0:02:18]} 21. Rac1 {[%clk 0:01:31]}  Qb6 {[%clk 0:02:09]} 22. Nc4 {[%clk 0:01:31]}  Qc7 {[%clk 0:02:09]} 23. Rfd1 {[%clk 0:01:10]}  Kg8 {[%clk 0:02:05]} 24. h4 {[%clk 0:01:04]}  Re8 {[%clk 0:01:46]} 25. Bf3 {[%clk 0:01:02]}  Rad8 {[%clk 0:01:43]} 26. b4 {[%clk 0:00:54]}  Nf8 {[%clk 0:01:34]} 27. Rxd8 {[%clk 0:00:52]}  Qxd8 {[%clk 0:01:34]} 28. Nxe5 {[%clk 0:00:49]}  Ne6 {[%clk 0:01:32]} 29. Qe3 {[%clk 0:00:41]}  Nd4 {[%clk 0:01:31]} 30. Nc4 {[%clk 0:00:36]}  Nxf3+ {[%clk 0:01:28]} 31. Qxf3 {[%clk 0:00:36]}  Rxe4 {[%clk 0:01:28]} 32. Ne3 {[%clk 0:00:31]}  Rxb4 {[%clk 0:01:26]} 33. Rd1 {[%clk 0:00:31]}  Rd4 {[%clk 0:01:26]} 34. Rb1 {[%clk 0:00:30]}  Qd7 {[%clk 0:01:24]} 35. Kg2 {[%clk 0:00:29]}  Rd2 {[%clk 0:01:19]} 36. a4 {[%clk 0:00:25]}  b6 {[%clk 0:01:15]} 37. a5 {[%clk 0:00:22]}  b5 {[%clk 0:01:14]} 38. Rc1 {[%clk 0:00:18]}  Rd6 {[%clk 0:01:12]} 39. Qf4 {[%clk 0:00:16]}  Nd5 {[%clk 0:01:06]} 40. Nxd5 {[%clk 0:00:14]}  Rxd5 {[%clk 0:01:07]} 41. a6 {[%clk 0:00:14]}  Rd6 {[%clk 0:00:54]} 42. Re1 {[%clk 0:00:06]}  Kh7 {[%clk 0:00:51]} 43. Qg5 {[%clk 0:00:05]}  c5 {[%clk 0:00:43]} 44. Re7 {[%clk 0:00:04]}  Qc6+ {[%clk 0:00:39]} 45. f3 {[%clk 0:00:05]}  Qxa6 {[%clk 0:00:34]} 46. h5 {[%clk 0:00:05]}  Qa2+ {[%clk 0:00:33]} 47. Kh3 {[%clk 0:00:04]}  Qb1 {[%clk 0:00:22]} 48. Rxf7 {[%clk 0:00:03]}  Qh1+ {[%clk 0:00:21]} 49. Kg4 {[%clk 0:00:03]}  Qxh5+ {[%clk 0:00:20]} 50. Qxh5+ {[%clk 0:00:04]}  gxh5+ {[%clk 0:00:21]} 51. Kxh5 {[%clk 0:00:04]}  a5 {[%clk 0:00:21]} 52. Rc7 {[%clk 0:00:04]}  c4 {[%clk 0:00:20]} 53. f4 {[%clk 0:00:04]}  Rd5+ {[%clk 0:00:18]} 54. Kh4 {[%clk 0:00:04]}  a4 {[%clk 0:00:18]} 55. g4 {[%clk 0:00:04]}  a3 {[%clk 0:00:15]} 56. f5 {[%clk 0:00:05]}  Kg8 {[%clk 0:00:14]} 57. Kg5 {[%clk 0:00:04]}  a2 {[%clk 0:00:13]} 58. Ra7 {[%clk 0:00:04]}  c3 {[%clk 0:00:10]} 59. Rxa2 {[%clk 0:00:03]}  Rc5 {[%clk 0:00:10]} 60. Kg6 {[%clk 0:00:02]}  Rc6+ {[%clk 0:00:10]} 61. Kg5 {[%clk 0:00:03]}  c2 {[%clk 0:00:10]} 62. Ra8+ {[%clk 0:00:03]}  Kf7 {[%clk 0:00:10]} 63. Ra7+ {[%clk 0:00:03]}  Kf8 {[%clk 0:00:10]} 64. Ra8+ {[%clk 0:00:03]}  Ke7 {[%clk 0:00:10]} 65. Ra7+ {[%clk 0:00:04]}  Kd8 {[%clk 0:00:10]} 66. Ra8+ {[%clk 0:00:04]}  Rc8 {[%clk 0:00:10]} 67. Ra7 {[%clk 0:00:05]}  c1=Q+ {[%clk 0:00:09]} 68. Kg6 {[%clk 0:00:06]}  Qh6+ {[%clk 0:00:09]} 69. Kf7 {[%clk 0:00:05]}  Rc7+ {[%clk 0:00:09]} 70. Rxc7 {[%clk 0:00:05]}  Kxc7 {[%clk 0:00:10]} 71. g5 {[%clk 0:00:05]}  Qxg5 {[%clk 0:00:10]} 72. Ke6 {[%clk 0:00:06]}  Qf6+ {[%clk 0:00:10]} 73. Kd5 {[%clk 0:00:06]}  Qxf5+ {[%clk 0:00:10]} 74. Kd4 {[%clk 0:00:05]}  g5 {[%clk 0:00:10]} 75. Ke3 {[%clk 0:00:05]}  g4 {[%clk 0:00:11]} 76. Ke2 {[%clk 0:00:05]}  g3 {[%clk 0:00:12]} 77. Ke3 {[%clk 0:00:06]}  g2 {[%clk 0:00:12]} 0-1


[Site "https://www.chess.com"]

[Event "Titled Tuesday Blitz May 25 2021"]
[White "Grochal, Joey"]
[Black "Cardoso Cardoso, Jose Gabriel"]
[WhiteFideId "1019945"]
[BlackFideId "4430492"]
[WhiteElo "2265"]
[BlackElo "2343"]
[Result "0-1"]
[Round "05"]
[TimeControl "180+1"]
[Date "2021.05.25"]
[WhiteClock "0:00:56"]
[BlackClock "0:00:37"]

1. d4 {[%clk 0:03:00]}  Nf6 {[%clk 0:02:25]} 2. c4 {[%clk 0:02:59]}  g6 {[%clk 0:02:25]} 3. Nc3 {[%clk 0:02:58]}  Bg7 {[%clk 0:02:17]} 4. e4 {[%clk 0:02:59]}  d6 {[%clk 0:02:13]} 5. h3 {[%clk 0:02:59]}  O-O {[%clk 0:02:06]} 6. Bg5 {[%clk 0:02:59]}  Na6 {[%clk 0:02:00]} 7. Nf3 {[%clk 0:02:59]}  e5 {[%clk 0:01:50]} 8. d5 {[%clk 0:02:58]}  c6 {[%clk 0:01:45]} 9. g4 {[%clk 0:02:55]}  Bd7 {[%clk 0:01:27]} 10. Be2 {[%clk 0:02:53]}  cxd5 {[%clk 0:01:26]} 11. cxd5 {[%clk 0:02:53]}  Nc5 {[%clk 0:01:26]} 12. Nd2 {[%clk 0:02:52]}  b5 {[%clk 0:01:26]} 13. a3 {[%clk 0:02:48]}  a5 {[%clk 0:01:20]} 14. Nxb5 {[%clk 0:02:48]}  Bxb5 {[%clk 0:01:18]} 15. Bxb5 {[%clk 0:02:48]}  Qb6 {[%clk 0:01:18]} 16. Bxf6 {[%clk 0:02:18]}  Qxb5 {[%clk 0:01:11]} 17. Bxg7 {[%clk 0:02:00]}  Nd3+ {[%clk 0:01:11]} 18. Kf1 {[%clk 0:02:00]}  Nf4+ {[%clk 0:01:10]} 19. Kg1 {[%clk 0:01:59]}  Kxg7 {[%clk 0:01:10]} 20. b3 {[%clk 0:01:45]}  Qd3 {[%clk 0:01:02]} 21. Nf1 {[%clk 0:01:14]}  Qxe4 {[%clk 0:00:49]} 22. Ne3 {[%clk 0:01:15]}  Rac8 {[%clk 0:00:47]} 23. Qb1 {[%clk 0:00:56]}  Qf3 {[%clk 0:00:38]} 24. Qd1 {[%clk 0:00:56]}  Ne2+ {[%clk 0:00:38]} 25. Kf1 {[%clk 0:00:56]}  Ng3+ {[%clk 0:00:37]} 0-1


[Site "https://www.chess.com"]

[Event "Titled Tuesday Blitz May 25 2021"]
[White "Hasangatin, Ramil"]
[Black "Wong, Yinn Long"]
[WhiteFideId "4122160"]
[BlackFideId "5707684"]
[WhiteElo "2530"]
[BlackElo "2724"]
[Result "0-1"]
[Round "05"]
[TimeControl "180+1"]
[Date "2021.05.25"]
[WhiteClock "0:00:07"]
[BlackClock "0:00:11"]

1. e4 {[%clk 0:03:00]}  c6 {[%clk 0:03:00]} 2. Nf3 {[%clk 0:03:00]}  d5 {[%clk 0:03:01]} 3. d3 {[%clk 0:03:01]}  g6 {[%clk 0:02:58]} 4. g3 {[%clk 0:02:59]}  Bg7 {[%clk 0:02:59]} 5. Bg2 {[%clk 0:02:59]}  Bg4 {[%clk 0:02:54]} 6. O-O {[%clk 0:02:57]}  Nf6 {[%clk 0:02:53]} 7. h3 {[%clk 0:02:51]}  Bxf3 {[%clk 0:02:47]} 8. Qxf3 {[%clk 0:02:52]}  Nbd7 {[%clk 0:02:44]} 9. Re1 {[%clk 0:02:44]}  O-O {[%clk 0:02:42]} 10. exd5 {[%clk 0:02:40]}  cxd5 {[%clk 0:02:41]} 11. c4 {[%clk 0:02:40]}  e6 {[%clk 0:02:38]} 12. Nc3 {[%clk 0:02:39]}  Nb6 {[%clk 0:02:22]} 13. c5 {[%clk 0:02:33]}  Nbd7 {[%clk 0:02:21]} 14. d4 {[%clk 0:02:34]}  Nb8 {[%clk 0:02:12]} 15. Bf4 {[%clk 0:02:26]}  Nc6 {[%clk 0:02:12]} 16. Qd3 {[%clk 0:02:14]}  b6 {[%clk 0:02:03]} 17. Bd6 {[%clk 0:02:13]}  Re8 {[%clk 0:02:03]} 18. a3 {[%clk 0:02:12]}  bxc5 {[%clk 0:01:59]} 19. dxc5 {[%clk 0:02:11]}  a5 {[%clk 0:01:49]} 20. Na4 {[%clk 0:02:10]}  Nd7 {[%clk 0:01:48]} 21. Rad1 {[%clk 0:01:46]}  Bf8 {[%clk 0:01:41]} 22. Bxf8 {[%clk 0:01:35]}  Rxf8 {[%clk 0:01:41]} 23. Qb5 {[%clk 0:01:33]}  Qc7 {[%clk 0:01:39]} 24. Rc1 {[%clk 0:01:18]}  Rfb8 {[%clk 0:01:38]} 25. Qe2 {[%clk 0:01:11]}  Rb3 {[%clk 0:01:35]} 26. Qd1 {[%clk 0:01:06]}  Rab8 {[%clk 0:01:32]} 27. Re2 {[%clk 0:00:54]}  R3b5 {[%clk 0:01:12]} 28. Rec2 {[%clk 0:00:53]}  Rb3 {[%clk 0:00:52]} 29. h4 {[%clk 0:00:52]}  Qe5 {[%clk 0:00:45]} 30. Re2 {[%clk 0:00:44]}  Qd4 {[%clk 0:00:45]} 31. Qxd4 {[%clk 0:00:38]}  Nxd4 {[%clk 0:00:46]} 32. Rd2 {[%clk 0:00:36]}  Nc6 {[%clk 0:00:47]} 33. h5 {[%clk 0:00:24]}  Kf8 {[%clk 0:00:46]} 34. h6 {[%clk 0:00:24]}  Ke7 {[%clk 0:00:47]} 35. Re1 {[%clk 0:00:20]}  Kd8 {[%clk 0:00:37]} 36. Bxd5 {[%clk 0:00:18]}  exd5 {[%clk 0:00:33]} 37. Rxd5 {[%clk 0:00:19]}  Kc7 {[%clk 0:00:34]} 38. Red1 {[%clk 0:00:13]}  Nf8 {[%clk 0:00:18]} 39. Rd6 {[%clk 0:00:12]}  Ne5 {[%clk 0:00:16]} 40. f4 {[%clk 0:00:11]}  Nc4 {[%clk 0:00:11]} 41. Rf6 {[%clk 0:00:09]}  Nxb2 {[%clk 0:00:11]} 42. Rxf7+ {[%clk 0:00:09]}  Kc6 {[%clk 0:00:11]} 43. Rd6+ {[%clk 0:00:09]}  Kb5 {[%clk 0:00:12]} 44. Nxb2 {[%clk 0:00:06]}  Rxb2 {[%clk 0:00:13]} 45. Rd1 {[%clk 0:00:04]}  Kxc5 {[%clk 0:00:10]} 46. f5 {[%clk 0:00:04]}  gxf5 {[%clk 0:00:09]} 47. Rxf5+ {[%clk 0:00:05]}  Kc4 {[%clk 0:00:09]} 48. Rxa5 {[%clk 0:00:05]}  Ng6 {[%clk 0:00:08]} 49. Rg5 {[%clk 0:00:05]}  Rb1 {[%clk 0:00:09]} 50. Rxb1 {[%clk 0:00:05]}  Rxb1+ {[%clk 0:00:09]} 51. Kf2 {[%clk 0:00:05]}  Ra1 {[%clk 0:00:10]} 52. Kf3 {[%clk 0:00:04]}  Rxa3+ {[%clk 0:00:11]} 53. Ke4 {[%clk 0:00:04]}  Ra1 {[%clk 0:00:09]} 54. Kf5 {[%clk 0:00:04]}  Rf1+ {[%clk 0:00:09]} 55. Ke6 {[%clk 0:00:04]}  Nf8+ {[%clk 0:00:07]} 56. Ke7 {[%clk 0:00:04]}  Ng6+ {[%clk 0:00:08]} 57. Ke6 {[%clk 0:00:03]}  Rh1 {[%clk 0:00:08]} 58. Kf6 {[%clk 0:00:01]}  Rxh6 {[%clk 0:00:07]} 59. Kg7 {[%clk 0:00:02]}  Rh3 {[%clk 0:00:08]} 60. Rg4+ {[%clk 0:00:02]}  Kd5 {[%clk 0:00:08]} 61. Rg5+ {[%clk 0:00:03]}  Ke4 {[%clk 0:00:07]} 62. Ra5 {[%clk 0:00:04]}  Ne5 {[%clk 0:00:07]} 63. Ra4+ {[%clk 0:00:03]}  Kf5 {[%clk 0:00:07]} 64. Ra5 {[%clk 0:00:03]}  h5 {[%clk 0:00:06]} 65. Kh6 {[%clk 0:00:03]}  Ke4 {[%clk 0:00:06]} 66. Ra4+ {[%clk 0:00:02]}  Kf3 {[%clk 0:00:07]} 67. Rh4 {[%clk 0:00:03]}  Rxh4 {[%clk 0:00:05]} 68. gxh4 {[%clk 0:00:03]}  Kg4 {[%clk 0:00:06]} 69. Kg7 {[%clk 0:00:03]}  Kxh4 {[%clk 0:00:07]} 70. Kf6 {[%clk 0:00:04]}  Kg3 {[%clk 0:00:08]} 71. Kf5 {[%clk 0:00:05]}  h4 {[%clk 0:00:08]} 72. Kxe5 {[%clk 0:00:05]}  h3 {[%clk 0:00:08]} 73. Ke4 {[%clk 0:00:05]}  h2 {[%clk 0:00:09]} 74. Kf5 {[%clk 0:00:06]}  h1=Q {[%clk 0:00:10]} 75. Kf6 {[%clk 0:00:07]}  Qf1+ {[%clk 0:00:10]} 76. Kg7 {[%clk 0:00:07]}  Qa6 {[%clk 0:00:11]} 0-1


[Site "https://www.chess.com"]

[Event "Titled Tuesday Blitz May 25 2021"]
[White "Herrera Reyes, Jose Antonio"]
[Black "Kamsky, Gata"]
[WhiteFideId "2274914"]
[BlackFideId "2000024"]
[WhiteElo "2578"]
[BlackElo "2821"]
[Result "0-1"]
[Round "05"]
[TimeControl "180+1"]
[Date "2021.05.25"]
[WhiteClock "0:00:14"]
[BlackClock "0:00:17"]

1. e4 {[%clk 0:02:54]}  c5 {[%clk 0:02:57]} 2. c3 {[%clk 0:02:53]}  Nf6 {[%clk 0:02:55]} 3. e5 {[%clk 0:02:50]}  Nd5 {[%clk 0:02:54]} 4. d4 {[%clk 0:02:50]}  cxd4 {[%clk 0:02:53]} 5. Nf3 {[%clk 0:02:50]}  Nc6 {[%clk 0:02:52]} 6. Bc4 {[%clk 0:02:48]}  Nb6 {[%clk 0:02:51]} 7. Bb3 {[%clk 0:02:40]}  d5 {[%clk 0:02:42]} 8. exd6 {[%clk 0:02:37]}  Qxd6 {[%clk 0:02:40]} 9. O-O {[%clk 0:02:36]}  Be6 {[%clk 0:02:39]} 10. Bxe6 {[%clk 0:02:33]}  Qxe6 {[%clk 0:02:38]} 11. cxd4 {[%clk 0:02:33]}  Qd7 {[%clk 0:02:31]} 12. Nc3 {[%clk 0:02:25]}  e6 {[%clk 0:02:30]} 13. Ne4 {[%clk 0:02:22]}  Be7 {[%clk 0:02:23]} 14. Nc5 {[%clk 0:02:21]}  Qc8 {[%clk 0:02:20]} 15. a4 {[%clk 0:02:16]}  O-O {[%clk 0:02:13]} 16. a5 {[%clk 0:02:16]}  Nd5 {[%clk 0:02:11]} 17. Bg5 {[%clk 0:02:15]}  Bxg5 {[%clk 0:02:04]} 18. Nxg5 {[%clk 0:02:16]}  h6 {[%clk 0:02:03]} 19. Nge4 {[%clk 0:02:13]}  b6 {[%clk 0:02:01]} 20. axb6 {[%clk 0:02:10]}  axb6 {[%clk 0:02:00]} 21. Nb3 {[%clk 0:01:57]}  Rxa1 {[%clk 0:01:49]} 22. Qxa1 {[%clk 0:01:56]}  Rd8 {[%clk 0:01:40]} 23. Rc1 {[%clk 0:01:55]}  Qb7 {[%clk 0:01:38]} 24. Qa4 {[%clk 0:01:53]}  Nce7 {[%clk 0:01:35]} 25. Qb5 {[%clk 0:01:39]}  Nf4 {[%clk 0:01:33]} 26. f3 {[%clk 0:01:34]}  Qb8 {[%clk 0:01:19]} 27. g3 {[%clk 0:01:26]}  Nfd5 {[%clk 0:01:16]} 28. Nbd2 {[%clk 0:01:25]}  Nf5 {[%clk 0:01:14]} 29. Nb3 {[%clk 0:01:11]}  Qa7 {[%clk 0:01:02]} 30. g4 {[%clk 0:01:04]}  Nh4 {[%clk 0:00:59]} 31. Kf2 {[%clk 0:01:03]}  Qb8 {[%clk 0:00:58]} 32. Ng3 {[%clk 0:00:57]}  Qf4 {[%clk 0:00:53]} 33. Qe2 {[%clk 0:00:57]}  Nf6 {[%clk 0:00:47]} 34. h3 {[%clk 0:00:52]}  Qd6 {[%clk 0:00:42]} 35. Rc4 {[%clk 0:00:48]}  Nd5 {[%clk 0:00:40]} 36. Nd2 {[%clk 0:00:45]}  Ng6 {[%clk 0:00:38]} 37. Nde4 {[%clk 0:00:45]}  Qe7 {[%clk 0:00:37]} 38. Qc2 {[%clk 0:00:43]}  Ngf4 {[%clk 0:00:34]} 39. Rc8 {[%clk 0:00:43]}  Nxh3+ {[%clk 0:00:34]} 40. Ke1 {[%clk 0:00:37]}  Qb4+ {[%clk 0:00:28]} 41. Nd2 {[%clk 0:00:33]}  Qf8 {[%clk 0:00:28]} 42. Rxd8 {[%clk 0:00:32]}  Qxd8 {[%clk 0:00:28]} 43. Nde4 {[%clk 0:00:31]}  Nhf4 {[%clk 0:00:27]} 44. Qc6 {[%clk 0:00:29]}  Qe7 {[%clk 0:00:24]} 45. Nd6 {[%clk 0:00:28]}  Kh7 {[%clk 0:00:22]} 46. Qc2+ {[%clk 0:00:22]}  g6 {[%clk 0:00:22]} 47. Nde4 {[%clk 0:00:22]}  Qb4+ {[%clk 0:00:21]} 48. Qd2 {[%clk 0:00:20]}  Nd3+ {[%clk 0:00:21]} 49. Ke2 {[%clk 0:00:20]}  N5f4+ {[%clk 0:00:20]} 50. Ke3 {[%clk 0:00:20]}  Qb3 {[%clk 0:00:18]} 51. Qc3 {[%clk 0:00:20]}  Nd5+ {[%clk 0:00:16]} 52. Kxd3 {[%clk 0:00:19]}  Nxc3 {[%clk 0:00:17]} 53. bxc3 {[%clk 0:00:20]}  Qd1+ {[%clk 0:00:16]} 54. Nd2 {[%clk 0:00:19]}  Kg7 {[%clk 0:00:16]} 55. Ne4 {[%clk 0:00:19]}  h5 {[%clk 0:00:16]} 56. gxh5 {[%clk 0:00:19]}  gxh5 {[%clk 0:00:16]} 57. Nf2 {[%clk 0:00:20]}  Qe1 {[%clk 0:00:16]} 58. Nde4 {[%clk 0:00:19]}  h4 {[%clk 0:00:16]} 59. c4 {[%clk 0:00:19]}  f5 {[%clk 0:00:16]} 60. Ng5 {[%clk 0:00:16]}  Qxf2 {[%clk 0:00:16]} 61. Nxe6+ {[%clk 0:00:14]}  Kh6 {[%clk 0:00:17]} 62. d5 {[%clk 0:00:14]}  Qxf3+ {[%clk 0:00:17]} 63. Kd4 {[%clk 0:00:14]}  Qe4+ {[%clk 0:00:17]} 64. Kc3 {[%clk 0:00:14]}  h3 {[%clk 0:00:17]} 0-1


[Site "https://www.chess.com"]

[Event "Titled Tuesday Blitz May 25 2021"]
[White "Ibrahimli, Murad"]
[Black "Tejedor Fuente, Enrique"]
[WhiteFideId "13410229"]
[BlackFideId "2299100"]
[WhiteElo "2756"]
[BlackElo "2582"]
[Result "0-1"]
[Round "05"]
[TimeControl "180+1"]
[Date "2021.05.25"]
[WhiteClock "0:00:06"]
[BlackClock "0:00:08"]

1. c4 {[%clk 0:03:00]}  e5 {[%clk 0:02:56]} 2. Nc3 {[%clk 0:03:01]}  Nc6 {[%clk 0:02:57]} 3. g3 {[%clk 0:03:00]}  g6 {[%clk 0:02:58]} 4. Bg2 {[%clk 0:03:00]}  Bg7 {[%clk 0:02:59]} 5. e3 {[%clk 0:02:59]}  d6 {[%clk 0:03:00]} 6. Nge2 {[%clk 0:03:00]}  Be6 {[%clk 0:03:00]} 7. d3 {[%clk 0:02:59]}  Qd7 {[%clk 0:02:58]} 8. h3 {[%clk 0:02:58]}  Nge7 {[%clk 0:02:51]} 9. Nd5 {[%clk 0:02:57]}  O-O {[%clk 0:02:49]} 10. Nec3 {[%clk 0:02:56]}  Nd8 {[%clk 0:02:37]} 11. Nxe7+ {[%clk 0:02:53]}  Qxe7 {[%clk 0:02:37]} 12. O-O {[%clk 0:02:53]}  Qd7 {[%clk 0:02:12]} 13. Kh2 {[%clk 0:02:51]}  a6 {[%clk 0:02:05]} 14. f4 {[%clk 0:02:50]}  Rc8 {[%clk 0:02:03]} 15. Nd5 {[%clk 0:02:43]}  f5 {[%clk 0:01:56]} 16. Bd2 {[%clk 0:02:33]}  exf4 {[%clk 0:01:49]} 17. Nxf4 {[%clk 0:02:33]}  Bxb2 {[%clk 0:01:41]} 18. Rb1 {[%clk 0:02:33]}  Bg7 {[%clk 0:01:39]} 19. Nxe6 {[%clk 0:02:31]}  Nxe6 {[%clk 0:01:38]} 20. Bxb7 {[%clk 0:02:28]}  Rb8 {[%clk 0:01:39]} 21. Bd5 {[%clk 0:02:15]}  c6 {[%clk 0:01:38]} 22. Qa4 {[%clk 0:02:13]}  Rbc8 {[%clk 0:01:32]} 23. Rb6 {[%clk 0:02:10]}  Kh8 {[%clk 0:01:23]} 24. Rxc6 {[%clk 0:02:09]}  Nc5 {[%clk 0:00:47]} 25. Qc2 {[%clk 0:01:37]}  Rxc6 {[%clk 0:00:46]} 26. Bxc6 {[%clk 0:01:38]}  Qxc6 {[%clk 0:00:46]} 27. Bc3 {[%clk 0:01:35]}  Rb8 {[%clk 0:00:45]} 28. e4 {[%clk 0:01:31]}  Qd7 {[%clk 0:00:29]} 29. exf5 {[%clk 0:01:26]}  gxf5 {[%clk 0:00:30]} 30. Rf2 {[%clk 0:00:48]}  Bxc3 {[%clk 0:00:28]} 31. Qxc3+ {[%clk 0:00:48]}  Qg7 {[%clk 0:00:29]} 32. Qd2 {[%clk 0:00:17]}  Rg8 {[%clk 0:00:27]} 33. Qe3 {[%clk 0:00:16]}  Qe5 {[%clk 0:00:26]} 34. Qf3 {[%clk 0:00:15]}  Ne6 {[%clk 0:00:20]} 35. h4 {[%clk 0:00:11]}  Nd4 {[%clk 0:00:18]} 36. Qf4 {[%clk 0:00:11]}  Qxf4 {[%clk 0:00:18]} 37. Rxf4 {[%clk 0:00:11]}  Rg4 {[%clk 0:00:17]} 38. Rf2 {[%clk 0:00:10]}  Kg7 {[%clk 0:00:17]} 39. Rb2 {[%clk 0:00:11]}  Nf3+ {[%clk 0:00:11]} 40. Kh3 {[%clk 0:00:10]}  Rd4 {[%clk 0:00:11]} 41. Rb6 {[%clk 0:00:10]}  Rxd3 {[%clk 0:00:10]} 42. Rxa6 {[%clk 0:00:11]}  Ne5 {[%clk 0:00:10]} 43. Ra7+ {[%clk 0:00:08]}  Kg6 {[%clk 0:00:10]} 44. Kg2 {[%clk 0:00:08]}  Nxc4 {[%clk 0:00:10]} 45. Rc7 {[%clk 0:00:09]}  Rd2+ {[%clk 0:00:09]} 46. Kf3 {[%clk 0:00:08]}  Ne5+ {[%clk 0:00:10]} 47. Ke3 {[%clk 0:00:09]}  Rxa2 {[%clk 0:00:10]} 48. Rb7 {[%clk 0:00:08]}  h6 {[%clk 0:00:10]} 49. Rb6 {[%clk 0:00:08]}  Kh5 {[%clk 0:00:10]} 50. Rb7 {[%clk 0:00:07]}  Ra3+ {[%clk 0:00:10]} 51. Kf2 {[%clk 0:00:06]}  Ng4+ {[%clk 0:00:09]} 52. Kg2 {[%clk 0:00:07]}  Ra2+ {[%clk 0:00:09]} 53. Kg1 {[%clk 0:00:07]}  Nf6 {[%clk 0:00:09]} 54. Rf7 {[%clk 0:00:07]}  Kg6 {[%clk 0:00:07]} 55. Rf8 {[%clk 0:00:07]}  d5 {[%clk 0:00:06]} 56. Rd8 {[%clk 0:00:07]}  Rd2 {[%clk 0:00:06]} 57. Rd6 {[%clk 0:00:07]}  d4 {[%clk 0:00:06]} 58. Kf1 {[%clk 0:00:07]}  f4 {[%clk 0:00:06]} 59. g4 {[%clk 0:00:07]}  Kf7 {[%clk 0:00:06]} 60. g5 {[%clk 0:00:04]}  hxg5 {[%clk 0:00:07]} 61. hxg5 {[%clk 0:00:05]}  Ne4 {[%clk 0:00:08]} 62. Rd5 {[%clk 0:00:06]}  Ng3+ {[%clk 0:00:08]} 63. Ke1 {[%clk 0:00:06]}  Re2+ {[%clk 0:00:08]} 64. Kd1 {[%clk 0:00:07]}  Re4 {[%clk 0:00:08]} 65. Kd2 {[%clk 0:00:05]}  f3 {[%clk 0:00:08]} 66. Rd7+ {[%clk 0:00:05]}  Kg6 {[%clk 0:00:08]} 67. Rd8 {[%clk 0:00:05]}  f2 {[%clk 0:00:08]} 68. Rf8 {[%clk 0:00:06]} 0-1


[Site "https://www.chess.com"]

[Event "Titled Tuesday Blitz May 25 2021"]
[White "Jamshidi, Amir Hossein"]
[Black "Remolar Gallen, Jose"]
[WhiteFideId "12552941"]
[BlackFideId "2215187"]
[WhiteElo "2280"]
[BlackElo "2203"]
[Result "1-0"]
[Round "05"]
[TimeControl "180+1"]
[Date "2021.05.25"]
[WhiteClock "0:01:18"]
[BlackClock "0:00:01"]

1. d4 {[%clk 0:03:00]}  Nf6 {[%clk 0:02:59]} 2. Bg5 {[%clk 0:03:00]}  d5 {[%clk 0:02:56]} 3. e3 {[%clk 0:03:00]}  Bf5 {[%clk 0:02:54]} 4. c4 {[%clk 0:02:59]}  c6 {[%clk 0:02:51]} 5. Nc3 {[%clk 0:02:59]}  e6 {[%clk 0:02:50]} 6. Qb3 {[%clk 0:02:59]}  Qb6 {[%clk 0:02:49]} 7. c5 {[%clk 0:02:59]}  Qc7 {[%clk 0:02:46]} 8. Bf4 {[%clk 0:02:59]}  Qc8 {[%clk 0:02:45]} 9. h3 {[%clk 0:02:59]}  Be7 {[%clk 0:02:44]} 10. Nf3 {[%clk 0:02:58]}  O-O {[%clk 0:02:44]} 11. Nh4 {[%clk 0:02:52]}  Bg6 {[%clk 0:02:42]} 12. Nxg6 {[%clk 0:02:52]}  hxg6 {[%clk 0:02:43]} 13. Be2 {[%clk 0:02:51]}  Nbd7 {[%clk 0:02:42]} 14. Qd1 {[%clk 0:02:43]}  b6 {[%clk 0:02:37]} 15. b4 {[%clk 0:02:43]}  a5 {[%clk 0:02:36]} 16. a3 {[%clk 0:02:43]}  Qb7 {[%clk 0:02:34]} 17. O-O {[%clk 0:02:42]}  axb4 {[%clk 0:02:20]} 18. axb4 {[%clk 0:02:43]}  Rxa1 {[%clk 0:02:21]} 19. Qxa1 {[%clk 0:02:41]}  Ra8 {[%clk 0:02:21]} 20. Qc1 {[%clk 0:02:39]}  bxc5 {[%clk 0:02:15]} 21. bxc5 {[%clk 0:02:37]}  Bd8 {[%clk 0:02:14]} 22. Qc2 {[%clk 0:02:35]}  Ba5 {[%clk 0:02:09]} 23. Rb1 {[%clk 0:02:32]}  Qc8 {[%clk 0:02:05]} 24. Na4 {[%clk 0:02:32]}  Ne4 {[%clk 0:02:00]} 25. Bd3 {[%clk 0:02:24]}  f5 {[%clk 0:01:24]} 26. Nb6 {[%clk 0:01:39]}  Bxb6 {[%clk 0:01:08]} 27. cxb6 {[%clk 0:01:40]}  Qb7 {[%clk 0:01:08]} 28. Bc7 {[%clk 0:01:39]}  Nb8 {[%clk 0:00:27]} 29. Rc1 {[%clk 0:01:29]}  Ra3 {[%clk 0:00:15]} 30. Bxe4 {[%clk 0:01:21]}  fxe4 {[%clk 0:00:16]} 31. Qc5 {[%clk 0:01:22]}  Rb3 {[%clk 0:00:02]} 32. Qe7 {[%clk 0:01:20]}  Na6 {[%clk 0:00:01]} 33. Qxe6+ {[%clk 0:01:20]}  Kh7 {[%clk 0:00:01]} 34. Rxc6 {[%clk 0:01:18]}  Nb4 {[%clk 0:00:01]} 35. Qxg6+ {[%clk 0:01:18]} 1-0


[Site "https://www.chess.com"]